fUSD/lending_fUSD_20240403
["ID","MTS","AMOUNT","RATE_DAILY","PERIOD"]
[321422394,1712182257805,-211.70038815,0.00047212,30]
[321422395,1712182257814,-291.67523411,0.00047227,30]
[321422396,1712182257823,-1667.408695,0.000473,37]
[321422397,1712182257833,-602.12417404,0.0004733,30]
[321422398,1712182257842,-291.67523411,0.00047358,30]
[321422399,1712182257853,-500.0,0.00047438,30]
[321422400,1712182257863,-211.70038815,0.00047447,30]
[321422401,1712182257872,-151.29625457,0.0004746,30]
[321422402,1712182257882,-564.15,0.00047479,30]
[321422403,1712182257892,-1014.44,0.0004749,2]
[321422404,1712182257901,-150.0,0.000475,9]
[321422405,1712182257910,-211.0,0.0004756,30]
[321422406,1712182257920,-150.0,0.00047585,2]
[321422407,1712182257930,-291.67523411,0.00047586,30]
[321422408,1712182257940,-388.42808272,0.00047596,30]
[321422409,1712182257949,-153.63115965,0.0004768,30]
[321422410,1712182257959,-1100.0,0.00047712,30]
[321422411,1712182257969,-1300.0,0.00047712,30]
[321422412,1712182257978,-197.38677701,0.00047744,30]
[321422413,1712182257987,-509.54232732,0.00047748,30]
[321422414,1712182257997,-155.78714103,0.00047771,30]
[321422415,1712182258006,-197.38677701,0.00047778,30]
[321422416,1712182258016,-152.0,0.00047796,16]
[321422417,1712182258024,-1052.25,0.00047841,2]
[321422418,1712182258033,-159.96854777,0.00047865,30]
[321422419,1712182258042,-308.56,0.00047925,2]
[321422420,1712182258051,-564.15,0.00047945,30]
[321422421,1712182258060,-406.3,0.00047945,2]
[321422422,1712182258070,-153.63115965,0.00047969,30]
[321422423,1712182258079,-500.0,0.00047986,30]
[321422424,1712182258089,-200000.0,0.00048,28]
[321422425,1712182258234,-1041.56,0.00048,10]
[321422426,1712182258259,-966.0,0.00048,14]
[321422427,1712182258269,-600.0,0.00048,49]
[321422428,1712182258278,-83666.56783409,0.00048,10]
[321422429,1712182258287,-500.0,0.00048,2]
[321422430,1712182258295,-476.854916,0.00048,14]
[321422431,1712182258306,-507.01542111,0.00048,120]
[321422432,1712182258316,-151.0,0.00048,120]
[321422433,1712182258381,-597.47570345,0.00048,120]
[321422434,1712182258392,-392.200373,0.00048,25]
[321422435,1712182258402,-150.0,0.00048,9]
[321422436,1712182258411,-155.2251499,0.00048047,30]
[321422437,1712182258421,-203.19613583,0.00048075,30]
[321422438,1712182258430,-166.80091269,0.00048163,30]
[321422439,1712182258439,-203.19613583,0.00048173,30]
[321422440,1712182258448,-203.19613583,0.00048198,30]
[321422441,1712182258459,-617.10491849,0.00048233,30]
[321422442,1712182258468,-1000.0,0.00048233,30]
[321422443,1712182258478,-1000.0,0.00048233,30]
[321422444,1712182258489,-1000.0,0.00048233,30]
[321422445,1712182258498,-1000.0,0.00048233,30]
[321422446,1712182258508,-1000.0,0.00048233,30]
[321422447,1712182258517,-1000.0,0.00048233,30]
[321422448,1712182258528,-1000.0,0.00048233,30]
[321422449,1712182258538,-1000.0,0.00048233,30]
[321422450,1712182258547,-1000.0,0.00048233,30]
[321422451,1712182258556,-1000.0,0.00048233,30]
[321422452,1712182258566,-1000.0,0.00048233,30]
[321422453,1712182258575,-1000.0,0.00048233,30]
[321422454,1712182258584,-1000.0,0.00048233,30]
[321422455,1712182258594,-1000.0,0.00048233,30]
[321422456,1712182258603,-1000.0,0.00048233,30]
[321422457,1712182258612,-1000.0,0.00048233,30]
[321422458,1712182258621,-1000.0,0.00048233,30]
[321422459,1712182258631,-1000.0,0.00048233,30]
[321422460,1712182258641,-1000.0,0.00048233,30]
[321422461,1712182258650,-1000.0,0.00048233,30]
[321422462,1712182258659,-1000.0,0.00048233,30]
[321422463,1712182258668,-1000.0,0.00048233,30]
[321422464,1712182258678,-1000.0,0.00048233,30]
[321422465,1712182258687,-1000.0,0.00048233,30]
[321422466,1712182258697,-1000.0,0.00048233,30]
[321422467,1712182258705,-1000.0,0.00048233,30]
[321422468,1712182258716,-1000.0,0.00048233,30]
[321422469,1712182258726,-1000.0,0.00048233,30]
[321422470,1712182258736,-1000.0,0.00048233,30]
[321422471,1712182258746,-1000.0,0.00048233,30]
[321422472,1712182258755,-1100.0,0.0004826,30]
[321422473,1712182258765,-1300.0,0.0004826,30]
[321422474,1712182258774,-203.19613583,0.00048261,30]
[321422475,1712182258784,-153.54975412,0.00048283,30]
[321422476,1712182258793,-197.38677701,0.00048323,30]
[321422477,1712182258802,-211.70038815,0.00048327,30]
[321422478,1712182258813,-153.63115965,0.00048327,30]
[321422479,1712182258822,-308.56,0.0004839,2]
[321422480,1712182258833,-1000.0,0.000484,10]
[321422481,1712182258842,-564.15,0.00048411,30]
[321422482,1712182258853,-150.0,0.00048422,120]
[321422483,1712182258863,-150.0,0.0004845,2]
[321422484,1712182258872,-150.0,0.00048459,120]
[321422485,1712182258882,-4016.60382068,0.00048475,7]
[321422486,1712182258891,-679.24804006,0.00048475,2]
[321422487,1712182258900,-150.0,0.000485,9]
[321422488,1712182258909,-136524.37063588,0.0004851,15]
[321422489,1712182258918,-291.67523411,0.00048528,30]
[321422490,1712182258927,-500.0,0.00048534,30]
[321422491,1712182258935,-1014.44,0.0004859,2]
[321422492,1712182258943,-152.0,0.00048591,17]
[321422493,1712182258951,-157.33985921,0.00048621,30]
[321422494,1712182258960,-291.67523411,0.00048678,30]
[321422495,1712182258969,-151.0,0.00048685,120]
[321422496,1712182258977,-19887.09444479,0.000487,2]
[321422497,1712182258986,-16768.09825731,0.000487,2]
[321422498,1712182258994,-1331.0,0.000487,117]
[321422499,1712182259002,-207.0,0.0004871,30]
[321422500,1712182259011,-211.0,0.0004871,30]
[321422501,1712182259020,-602.12417404,0.00048768,30]
[321422502,1712182259030,-5466.46,0.000488,30]
[321422503,1712182259038,-1100.0,0.00048808,30]
[321422504,1712182259047,-1300.0,0.00048808,30]
[321422505,1712182259055,-153.31709142,0.00048833,30]
[321422506,1712182259065,-150.0,0.00048837,120]
[321422507,1712182259074,-564.15,0.00048849,30]
[321422508,1712182259083,-203.19613583,0.00048851,30]
[321422509,1712182259092,-448704.47935084,0.000489,2]
[321422510,1712182259101,-2098.01094403,0.000489,2]
[321422511,1712182259110,-15401.18643517,0.000489,2]
[321422512,1712182259119,-1014.44,0.00048905,2]
[321422513,1712182259128,-153.63115965,0.00048936,30]
[321422514,1712182259138,-203.19613583,0.00048962,30]
[321422515,1712182259147,-155.2251499,0.00048981,30]
[321422516,1712182259156,-1117.8,0.00048986,15]
[321422517,1712182259166,-150.0,0.0004899,120]
[321422518,1712182259175,-200000.0,0.00049,29]
[321422519,1712182259185,-1211.0,0.00049,4]
[321422520,1712182259194,-1106.46,0.00049,5]
[321422521,1712182259203,-1000.0,0.00049,2]
[321422522,1712182259212,-518.71,0.00049,7]
[321422523,1712182259221,-360.12491363,0.00049,30]
[321422524,1712182259230,-165.80805047,0.00049,30]
[321422525,1712182259239,-286.44424997,0.00049,30]
[321422526,1712182259247,-100000.0,0.00049,90]
[321422527,1712182259257,-5055.95564844,0.00049,10]
[321422528,1712182259268,-1029.4124782,0.00049,2]
[321422529,1712182259280,-160.5575968,0.00049,5]
[321422530,1712182259291,-18697.0,0.00049,120]
[321422531,1712182259300,-2000.00361708,0.00049,2]
[321422532,1712182259309,-150.0,0.00049,9]
[321422533,1712182259319,-203.19613583,0.00049025,30]
[321422534,1712182259328,-203.19613583,0.00049048,30]
[321422535,1712182259339,-500.0,0.00049082,30]
[321422536,1712182259350,-3170.77637,0.00049088,30]
[321422537,1712182259360,-1000.0,0.000491,2]
[321422538,1712182259369,-1481.83661098,0.000491,14]
[321422539,1712182259378,-159.96854777,0.00049106,30]
[321422540,1712182259387,-155.2251499,0.00049152,30]
[321422541,1712182259396,-550.0,0.000492,30]
[321422542,1712182259405,-150.0,0.000492,64]
[321422543,1712182259414,-3170.77637,0.00049288,30]
[321422544,1712182259423,-3000.0,0.000493,2]
[321422545,1712182259433,-10000.00000015,0.00049315,2]
[321422546,1712182259442,-500.0,0.00049315,30]
[321422547,1712182259451,-313.0,0.00049315,30]
[321422548,1712182259461,-304.0,0.00049315,30]
[321422549,1712182259470,-301.0,0.00049315,30]
[321422550,1712182259480,-508.0,0.00049315,30]
[321422551,1712182259490,-2123.79,0.00049315,60]
[321422552,1712182259499,-1991.0,0.00049315,120]
[321422553,1712182259508,-564.15,0.00049315,30]
[321422554,1712182259519,-250.0,0.00049315,2]
[321422555,1712182259528,-151.0,0.00049315,120]
[321422556,1712182259538,-197.685418,0.00049315,120]
[321422557,1712182259547,-151.0,0.00049315,120]
[321422558,1712182259557,-151.0,0.00049315,120]
[321422559,1712182259566,-151.0,0.00049315,120]
[321422560,1712182259575,-151.0,0.00049315,120]
[321422561,1712182259585,-151.0,0.00049315,120]
[321422562,1712182259598,-151.0,0.00049315,120]
[321422563,1712182259607,-151.0,0.00049315,120]
[321422564,1712182259617,-151.0,0.00049315,120]
[321422565,1712182259626,-151.0,0.00049315,120]
[321422566,1712182259635,-151.0,0.00049315,120]
[321422567,1712182259645,-151.0,0.00049315,120]
[321422568,1712182259654,-152.817679,0.00049315,120]
[321422569,1712182259663,-151.0,0.00049315,120]
[321422570,1712182259674,-151.0,0.00049315,120]
[321422571,1712182259683,-151.0,0.00049315,120]
[321422572,1712182259691,-192.594505,0.00049315,120]
[321422573,1712182259701,-151.0,0.00049315,120]
[321422574,1712182259710,-151.0,0.00049315,120]
[321422575,1712182259719,-154.035489,0.00049315,120]
[321422576,1712182259728,-151.0,0.00049315,120]
[321422577,1712182259737,-151.0,0.00049315,120]
[321422578,1712182259746,-151.0,0.00049315,120]
[321422579,1712182259755,-151.0,0.00049315,120]
[321422580,1712182259765,-151.0,0.00049315,120]
[321422581,1712182259775,-151.0,0.00049315,120]
[321422582,1712182259784,-151.0,0.00049315,120]
[321422583,1712182259793,-151.0,0.00049315,120]
[321422584,1712182259802,-154.451411,0.00049315,120]
[321422585,1712182259811,-182.524623,0.00049315,120]
[321422586,1712182259820,-151.0,0.00049315,120]
[321422587,1712182259829,-151.0,0.00049315,120]
[321422588,1712182259838,-151.0,0.00049315,120]
[321422589,1712182259847,-151.0,0.00049315,120]
[321422590,1712182259856,-151.0,0.00049315,120]
[321422591,1712182259865,-151.0,0.00049315,120]
[321422592,1712182259874,-151.0,0.00049315,120]
[321422593,1712182259882,-151.0,0.00049315,120]
[321422594,1712182259892,-151.0,0.00049315,120]
[321422595,1712182259902,-151.0,0.00049315,120]
[321422596,1712182259911,-151.0,0.00049315,120]
[321422597,1712182259920,-151.0,0.00049315,120]
[321422598,1712182259929,-275.798458,0.00049315,120]
[321422599,1712182259939,-151.0,0.00049315,120]
[321422600,1712182259948,-151.0,0.00049315,120]
[321422601,1712182259957,-151.0,0.00049315,120]
[321422602,1712182259966,-151.0,0.00049315,120]
[321422603,1712182259975,-151.0,0.00049315,120]
[321422604,1712182259984,-151.0,0.00049315,120]
[321422605,1712182259993,-151.0,0.00049315,120]
[321422606,1712182260002,-276.129782,0.00049315,120]
[321422607,1712182260011,-151.0,0.00049315,120]
[321422608,1712182260020,-151.0,0.00049315,120]
[321422609,1712182260030,-151.0,0.00049315,120]
[321422610,1712182260039,-151.0,0.00049315,120]
[321422611,1712182260048,-152.186077,0.00049315,120]
[321422612,1712182260057,-151.0,0.00049315,120]
[321422613,1712182260067,-151.0,0.00049315,120]
[321422614,1712182260076,-151.0,0.00049315,120]
[321422615,1712182260086,-151.0,0.00049315,120]
[321422616,1712182260095,-151.0,0.00049315,120]
[321422617,1712182260104,-151.0,0.00049315,120]
[321422618,1712182260114,-151.0,0.00049315,120]
[321422619,1712182260123,-151.0,0.00049315,120]
[321422620,1712182260132,-151.0,0.00049315,120]
[321422621,1712182260144,-151.0,0.00049315,120]
[321422622,1712182260154,-151.0,0.00049315,120]
[321422623,1712182260164,-151.0,0.00049315,120]
[321422624,1712182260174,-151.0,0.00049315,120]
[321422625,1712182260184,-151.0,0.00049315,120]
[321422626,1712182260194,-151.0,0.00049315,120]
[321422627,1712182260203,-151.0,0.00049315,120]
[321422628,1712182260213,-151.0,0.00049315,120]
[321422629,1712182260223,-169.928645,0.00049315,120]
[321422630,1712182260232,-151.0,0.00049315,120]
[321422631,1712182260242,-151.0,0.00049315,120]
[321422632,1712182260252,-151.0,0.00049315,120]
[321422633,1712182260263,-151.0,0.00049315,120]
[321422634,1712182260273,-204.897764,0.00049315,120]
[321422635,1712182260283,-151.0,0.00049315,120]
[321422636,1712182260293,-151.0,0.00049315,120]
[321422637,1712182260302,-151.0,0.00049315,120]
[321422638,1712182260311,-151.0,0.00049315,120]
[321422639,1712182260320,-151.0,0.00049315,120]
[321422640,1712182260329,-151.0,0.00049315,120]
[321422641,1712182260338,-151.0,0.00049315,120]
[321422642,1712182260348,-180.799472,0.00049315,120]
[321422643,1712182260357,-151.0,0.00049315,120]
[321422644,1712182260367,-151.0,0.00049315,120]
[321422645,1712182260377,-153.078926,0.00049315,120]
[321422646,1712182260540,-237.205367,0.00049315,7]
[321422647,1712182260551,-237.205367,0.00049315,7]
[321422648,1712182260560,-237.205367,0.00049315,7]
[321422649,1712182260570,-237.205367,0.00049315,7]
[321422650,1712182260580,-237.205367,0.00049315,7]
[321422651,1712182260594,-237.205367,0.00049315,7]
[321422652,1712182260608,-237.205367,0.00049315,7]
[321422653,1712182260618,-237.205367,0.00049315,7]
[321422654,1712182260628,-237.205367,0.00049315,7]
[321422655,1712182260639,-237.205367,0.00049315,7]
[321422656,1712182260648,-237.205367,0.00049315,7]
[321422657,1712182260658,-237.205367,0.00049315,7]
[321422658,1712182260667,-237.205367,0.00049315,7]
[321422659,1712182260677,-237.205367,0.00049315,7]
[321422660,1712182260689,-237.205367,0.00049315,7]
[321422661,1712182260699,-237.205367,0.00049315,7]
[321422662,1712182260708,-237.205367,0.00049315,7]
[321422663,1712182260718,-237.205367,0.00049315,7]
[321422664,1712182260727,-237.205367,0.00049315,7]
[321422665,1712182260738,-237.205372,0.00049315,7]
[321422666,1712182260747,-152.877723,0.00049315,120]
[321422667,1712182260759,-151.0,0.00049315,120]
[321422668,1712182260768,-151.0,0.00049315,120]
[321422669,1712182260780,-151.0,0.00049315,120]
[321422670,1712182260790,-151.0,0.00049315,120]
[321422671,1712182260799,-151.0,0.00049315,120]
[321422672,1712182260810,-151.0,0.00049315,120]
[321422673,1712182260819,-151.0,0.00049315,120]
[321422674,1712182260830,-151.0,0.00049315,120]
[321422675,1712182260839,-249.669558,0.00049315,120]
[321422676,1712182260849,-151.0,0.00049315,120]
[321422677,1712182260860,-151.0,0.00049315,120]
[321422678,1712182260870,-151.0,0.00049315,120]
[321422679,1712182260880,-151.0,0.00049315,120]
[321422680,1712182260890,-151.0,0.00049315,120]
[321422681,1712182260900,-151.0,0.00049315,120]
[321422682,1712182260909,-151.0,0.00049315,120]
[321422683,1712182260918,-151.0,0.00049315,120]
[321422684,1712182260927,-151.0,0.00049315,120]
[321422685,1712182260936,-151.0,0.00049315,120]
[321422686,1712182260945,-151.0,0.00049315,120]
[321422687,1712182260954,-195.828944,0.00049315,120]
[321422688,1712182260963,-202.94166,0.00049315,120]
[321422689,1712182260972,-151.0,0.00049315,120]
[321422690,1712182260981,-151.0,0.00049315,120]
[321422691,1712182260990,-151.0,0.00049315,120]
[321422692,1712182261000,-151.0,0.00049315,120]
[321422693,1712182261009,-151.0,0.00049315,120]
[321422694,1712182261019,-151.0,0.00049315,120]
[321422695,1712182261027,-151.0,0.00049315,120]
[321422696,1712182261037,-152.475414,0.00049315,120]
[321422697,1712182261046,-151.0,0.00049315,7]
[321422698,1712182261055,-151.0,0.00049315,7]
[321422699,1712182261064,-151.0,0.00049315,7]
[321422700,1712182261073,-151.0,0.00049315,7]
[321422701,1712182261084,-151.0,0.00049315,7]
[321422702,1712182261093,-151.0,0.00049315,7]
[321422703,1712182261103,-151.0,0.00049315,7]
[321422704,1712182261112,-151.0,0.00049315,7]
[321422705,1712182261121,-151.0,0.00049315,7]
[321422706,1712182261130,-151.0,0.00049315,7]
[321422707,1712182261138,-151.0,0.00049315,7]
[321422708,1712182261148,-257.684151,0.00049315,7]
[321422709,1712182261158,-322.885202,0.00049315,120]
[321422710,1712182261167,-322.885202,0.00049315,120]
[321422711,1712182261176,-322.885202,0.00049315,120]
[321422712,1712182261186,-322.885202,0.00049315,120]
[321422713,1712182261195,-322.885202,0.00049315,120]
[321422714,1712182261205,-322.885202,0.00049315,120]
[321422715,1712182261215,-322.885202,0.00049315,120]
[321422716,1712182261226,-322.885202,0.00049315,120]
[321422717,1712182261236,-322.885202,0.00049315,120]
[321422718,1712182261246,-322.885202,0.00049315,120]
[321422719,1712182261257,-322.885202,0.00049315,120]
[321422720,1712182261267,-322.885202,0.00049315,120]
[321422721,1712182261277,-322.885202,0.00049315,120]
[321422722,1712182261288,-322.885202,0.00049315,120]
[321422723,1712182261297,-322.885202,0.00049315,120]
[321422724,1712182261307,-322.885202,0.00049315,120]
[321422725,1712182261317,-322.885202,0.00049315,120]
[321422726,1712182261326,-322.885202,0.00049315,120]
[321422727,1712182261337,-322.885202,0.00049315,120]
[321422728,1712182261347,-322.885193,0.00049315,120]
[321422729,1712182261356,-151.0,0.00049315,120]
[321422730,1712182261368,-151.0,0.00049315,120]
[321422731,1712182261377,-151.0,0.00049315,120]
[321422732,1712182261387,-151.0,0.00049315,120]
[321422733,1712182261398,-197.885248,0.00049315,120]
[321422734,1712182261409,-151.0,0.00049315,120]
[321422735,1712182261420,-152.975986,0.00049315,120]
[321422736,1712182261430,-151.0,0.00049315,120]
[321422737,1712182261440,-151.0,0.00049315,120]
[321422738,1712182261450,-151.0,0.00049315,120]
[321422739,1712182261460,-151.0,0.00049315,120]
[321422740,1712182261470,-151.0,0.00049315,120]
[321422741,1712182261481,-158.413544,0.00049315,120]
[321422742,1712182261490,-265.553141,0.00049315,14]
[321422743,1712182261499,-265.553141,0.00049315,14]
[321422744,1712182261508,-265.553141,0.00049315,14]
[321422745,1712182261517,-265.553141,0.00049315,14]
[321422746,1712182261526,-265.553141,0.00049315,14]
[321422747,1712182261536,-265.553141,0.00049315,14]
[321422748,1712182261545,-265.553141,0.00049315,14]
[321422749,1712182261554,-265.553141,0.00049315,14]
[321422750,1712182261577,-265.553141,0.00049315,14]
[321422751,1712182261595,-151.0,0.00049315,120]
[321422752,1712182261613,-265.553141,0.00049315,14]
[321422753,1712182261633,-151.0,0.00049315,120]
[321422754,1712182261648,-265.553141,0.00049315,14]
[321422755,1712182261665,-151.0,0.00049315,120]
[321422756,1712182261683,-151.0,0.00049315,120]
[321422757,1712182261702,-265.553141,0.00049315,14]
[321422758,1712182261721,-208.230204,0.00049315,120]
[321422759,1712182261738,-265.553141,0.00049315,14]
[321422760,1712182261756,-265.553141,0.00049315,14]
[321422761,1712182261776,-265.553141,0.00049315,14]
[321422762,1712182261789,-265.553141,0.00049315,14]
[321422763,1712182261804,-265.553141,0.00049315,14]
[321422764,1712182261820,-265.553141,0.00049315,14]
[321422765,1712182261832,-265.553141,0.00049315,14]
[321422766,1712182261847,-265.553139,0.00049315,14]
[321422767,1712182261862,-340.368361,0.00049315,120]
[321422768,1712182261877,-340.368361,0.00049315,120]
[321422769,1712182261892,-340.368361,0.00049315,120]
[321422770,1712182261906,-340.368361,0.00049315,120]
[321422771,1712182261923,-340.368361,0.00049315,120]
[321422772,1712182261937,-340.368361,0.00049315,120]
[321422773,1712182261955,-340.368361,0.00049315,120]
[321422774,1712182261969,-340.368361,0.00049315,120]
[321422775,1712182261983,-340.368361,0.00049315,120]
[321422776,1712182261997,-340.368361,0.00049315,120]
[321422777,1712182262012,-340.368361,0.00049315,120]
[321422778,1712182262026,-340.368361,0.00049315,120]
[321422779,1712182262041,-340.368361,0.00049315,120]
[321422780,1712182262055,-353.623815,0.00049315,120]
[321422781,1712182262069,-340.368361,0.00049315,120]
[321422782,1712182262086,-353.623815,0.00049315,120]
[321422783,1712182262100,-340.368361,0.00049315,120]
[321422784,1712182262114,-353.623815,0.00049315,120]
[321422785,1712182262129,-340.368361,0.00049315,120]
[321422786,1712182262144,-353.623815,0.00049315,120]
[321422787,1712182262158,-340.368361,0.00049315,120]
[321422788,1712182262173,-353.623815,0.00049315,120]
[321422789,1712182262187,-340.368361,0.00049315,120]
[321422790,1712182262202,-353.623815,0.00049315,120]
[321422791,1712182262216,-340.368361,0.00049315,120]
[321422792,1712182262230,-353.623815,0.00049315,120]
[321422793,1712182262245,-340.368352,0.00049315,120]
[321422794,1712182262259,-353.623815,0.00049315,120]
[321422795,1712182262273,-353.623815,0.00049315,120]
[321422796,1712182262286,-353.623815,0.00049315,120]
[321422797,1712182262301,-353.623815,0.00049315,120]
[321422798,1712182262315,-353.623815,0.00049315,120]
[321422799,1712182262330,-353.623815,0.00049315,120]
[321422800,1712182262344,-353.623815,0.00049315,120]
[321422801,1712182262358,-353.623815,0.00049315,120]
[321422802,1712182262372,-353.623815,0.00049315,120]
[321422803,1712182262387,-353.623815,0.00049315,120]
[321422804,1712182262403,-353.623815,0.00049315,120]
[321422805,1712182262418,-353.623815,0.00049315,120]
[321422806,1712182262432,-353.623809,0.00049315,120]
[321422807,1712182262447,-151.0,0.00049315,120]
[321422808,1712182262462,-151.0,0.00049315,120]
[321422809,1712182262476,-154.254087,0.00049315,120]
[321422810,1712182262492,-151.0,0.00049315,120]
[321422811,1712182262507,-151.0,0.00049315,120]
[321422812,1712182262522,-151.0,0.00049315,120]
[321422813,1712182262538,-151.0,0.00049315,120]
[321422814,1712182262553,-151.0,0.00049315,120]
[321422815,1712182262568,-151.0,0.00049315,120]
[321422816,1712182262585,-151.0,0.00049315,120]
[321422817,1712182262601,-151.0,0.00049315,120]
[321422818,1712182262616,-151.0,0.00049315,120]
[321422819,1712182262633,-151.0,0.00049315,120]
[321422820,1712182262647,-151.0,0.00049315,120]
[321422821,1712182262664,-151.0,0.00049315,120]
[321422822,1712182262679,-151.0,0.00049315,120]
[321422823,1712182262694,-151.0,0.00049315,120]
[321422824,1712182262708,-151.0,0.00049315,120]
[321422825,1712182262723,-151.0,0.00049315,120]
[321422826,1712182262738,-151.0,0.00049315,120]
[321422827,1712182262752,-151.0,0.00049315,120]
[321422828,1712182262766,-151.0,0.00049315,120]
[321422829,1712182262781,-256.68965,0.00049315,120]
[321422830,1712182262795,-151.0,0.00049315,120]
[321422831,1712182262809,-151.0,0.00049315,120]
[321422832,1712182262824,-151.0,0.00049315,120]
[321422833,1712182262838,-151.0,0.00049315,120]
[321422834,1712182262852,-151.0,0.00049315,120]
[321422835,1712182262866,-151.0,0.00049315,120]
[321422836,1712182262881,-151.0,0.00049315,120]
[321422837,1712182262895,-151.0,0.00049315,120]
[321422838,1712182262909,-151.0,0.00049315,120]
[321422839,1712182262924,-151.0,0.00049315,120]
[321422840,1712182262939,-151.0,0.00049315,120]
[321422841,1712182262952,-151.0,0.00049315,120]
[321422842,1712182262962,-151.0,0.00049315,120]
[321422843,1712182262971,-201.597523,0.00049315,120]
[321422844,1712182262981,-156.346361,0.00049315,45]
[321422845,1712182262990,-151.0,0.00049315,120]
[321422846,1712182263000,-151.0,0.00049315,120]
[321422847,1712182263010,-151.0,0.00049315,120]
[321422848,1712182263019,-151.0,0.00049315,120]
[321422849,1712182263028,-151.0,0.00049315,120]
[321422850,1712182263271,-151.0,0.00049315,120]
[321422851,1712182263294,-151.0,0.00049315,120]
[321422852,1712182263322,-151.0,0.00049315,120]
[321422853,1712182263332,-151.0,0.00049315,120]
[321422854,1712182263344,-151.0,0.00049315,120]
[321422855,1712182263354,-151.0,0.00049315,7]
[321422856,1712182263365,-151.0,0.00049315,120]
[321422857,1712182263376,-151.0,0.00049315,120]
[321422858,1712182263387,-181.395914,0.00049315,120]
[321422859,1712182263398,-151.0,0.00049315,60]
[321422860,1712182263408,-151.0,0.00049315,60]
[321422861,1712182263418,-151.0,0.00049315,60]
[321422862,1712182263429,-151.0,0.00049315,60]
[321422863,1712182263438,-151.0,0.00049315,60]
[321422864,1712182263448,-151.0,0.00049315,60]
[321422865,1712182263458,-151.0,0.00049315,60]
[321422866,1712182263468,-151.0,0.00049315,60]
[321422867,1712182263478,-153.203017,0.00049315,60]
[321422868,1712182263488,-185.086166,0.00049315,120]
[321422869,1712182263498,-185.086166,0.00049315,120]
[321422870,1712182263507,-185.086166,0.00049315,120]
[321422871,1712182263516,-185.086166,0.00049315,120]
[321422872,1712182263525,-185.086166,0.00049315,120]
[321422873,1712182263536,-185.086166,0.00049315,120]
[321422874,1712182263545,-185.086166,0.00049315,120]
[321422875,1712182263555,-185.086166,0.00049315,120]
[321422876,1712182263565,-185.086166,0.00049315,120]
[321422877,1712182263575,-185.086166,0.00049315,120]
[321422878,1712182263584,-185.086166,0.00049315,120]
[321422879,1712182263596,-185.086166,0.00049315,120]
[321422880,1712182263606,-185.086166,0.00049315,120]
[321422881,1712182263615,-185.086166,0.00049315,120]
[321422882,1712182263625,-185.086166,0.00049315,120]
[321422883,1712182263636,-185.086166,0.00049315,120]
[321422884,1712182263647,-185.086166,0.00049315,120]
[321422885,1712182263657,-185.086166,0.00049315,120]
[321422886,1712182263667,-185.086166,0.00049315,120]
[321422887,1712182263678,-185.086174,0.00049315,120]
[321422888,1712182263687,-151.0,0.00049315,120]
[321422889,1712182263697,-151.0,0.00049315,120]
[321422890,1712182263706,-151.0,0.00049315,120]
[321422891,1712182263715,-151.0,0.00049315,120]
[321422892,1712182263725,-151.0,0.00049315,120]
[321422893,1712182263734,-156.74286,0.00049315,120]